bitfinex/quotes_SOLUSD_20241020
["timestamp","ask_amount","ask_price","bid_price","bid_amount"]
[1729391000662,5.6542,159.18,159.12,5.6558]
[1729391000886,5.6548,159.16,159.1,14.1413]
[1729391001189,23.776884,159.13,159.1,14.1413]
[1729391002564,23.776884,159.13,159.1,19.7981]
[1729391002769,23.776884,159.14,159.1,19.7981]
[1729391006874,23.776884,159.14,159.05,15.0622]
[1729391007079,23.776884,159.14,159.06,5.6581]
[1729391007277,23.776884,159.14,159.05,15.0622]
[1729391007474,23.776884,159.09,159.05,34.867]
[1729391008376,23.776884,159.09,159.05,19.8048]
[1729391008573,29.434084,159.09,159.05,14.1464]
[1729391008981,29.434084,159.09,159.03,5.659]
[1729391009186,23.776884,159.06,159.02,14.149]
[1729391009378,23.776884,159.06,158.93,0.1]
[1729391009379,23.776884,159.05,158.99,5.6605]
[1729391011675,29.435484,159.05,158.99,5.6605]
[1729391012181,29.435484,159.05,158.98,14.1524]
[1729391012182,23.776884,159.02,158.98,14.1524]
[1729391014398,29.436784,159.02,158.96,15.0622]
[1729391014698,29.436784,159.02,158.95,19.22387479]
[1729391015388,23.776884,159.0,158.95,19.22387479]
[1729391016616,29.437184,159.0,158.95,19.22387479]
[1729391016902,23.776884,158.97,158.95,13.56207479]
[1729391017113,23.776884,158.97,158.92,20.9051]
[1729391017278,5.6625,158.94,158.9,14.1589]
[1729391017607,23.776884,158.97,158.9,14.1589]
[1729391017608,5.6618,158.96,158.9,14.1589]
[1729391017804,5.6618,158.96,158.91,5.6635]
[1729391018305,23.776884,158.95,158.91,5.6635]
[1729391018510,23.776884,158.95,158.9,14.1589]
[1729391018800,23.776884,158.93,158.88,15.8531535]
[1729391019208,23.776884,158.93,158.88,21.5174535]
[1729391019689,23.776884,158.93,158.89,5.6642]
[1729391021290,23.776884,158.93,158.88,21.5177535]
[1729391022482,29.439884,158.93,158.88,6.2758535]
[1729391022807,29.439884,158.93,158.88,0.6112535]
[1729391024505,23.776884,158.93,158.88,0.6112535]
[1729391024690,23.776884,158.91,158.88,0.6112535]
[1729391025493,5.6642,158.9,158.88,0.6112535]
[1729391025703,23.776884,158.91,158.88,0.6112535]
[1729391026595,23.776884,158.91,158.88,6.2758535]
[1729391026796,23.776884,158.92,158.88,0.6112535]
[1729391030704,5.6625,158.95,158.89,19.8248]
[1729391031001,5.6625,158.95,158.88,0.6112535]
[1729391031002,6.52671531,158.97,158.92,5.6631]
[1729391031320,5.6613,158.98,158.92,5.6631]
[1729391032416,23.776884,158.97,158.9,15.2419]
[1729391032612,23.776884,158.97,158.93,5.6628]
[1729391038798,23.776884,158.97,158.92,14.1579]
[1729391039135,5.6618,158.96,158.92,14.1579]
[1729391040208,23.776884,158.95,158.91,5.6633]
[1729391040409,23.776884,158.97,158.89,14.1606]
[1729391040410,5.6629,158.93,158.89,14.1606]
[1729391041306,23.876884,158.97,158.88,0.6112535]
[1729391041511,23.776884,158.91,158.88,0.6112535]
[1729391042297,29.440384,158.91,158.88,0.6112535]
[1729391045308,5.6642,158.9,158.88,0.6112535]
[1729391045508,23.776884,158.89,158.88,0.6112535]
[1729391045846,29.441084,158.89,158.88,0.6112535]
[1729391050911,20.4155,158.95,158.88,0.6112535]
[1729391051318,23.776884,158.94,158.88,0.6112535]
[1729391052217,24.87102936,158.94,158.88,0.6112535]
[1729391052417,23.776884,158.9,158.88,0.6112535]
[1729391058331,29.440784,158.9,158.88,0.6112535]
[1729391059620,5.6639,158.9,158.88,0.6112535]
[1729391060436,5.6642,158.89,158.88,0.6112535]
[1729391060928,29.441084,158.89,158.88,0.6112535]
[1729391061112,29.541084,158.89,158.88,0.6112535]
[1729391063938,29.541084,158.89,158.88,5.35e-05]
[1729391064233,5.6657,158.85,158.78,15.8493]
[1729391064447,14.1635,158.86,158.78,15.8493]
[1729391064448,5.6667,158.83,158.78,15.8493]
[1729391064926,14.1635,158.86,158.78,15.8493]
[1729391065131,5.6669,158.82,158.78,15.8493]
[1729391068551,23.776884,158.84,158.78,15.8493]
[1729391068723,5.6671,158.82,158.78,15.8493]
[1729391069123,5.6674,158.81,158.78,15.8493]
[1729391074439,30.29743709,158.85,158.78,15.8493]
[1729391074642,5.6667,158.83,158.78,15.8493]
[1729391074941,5.6667,158.83,158.78,21.5172]
[1729391081755,29.443784,158.82,158.77,5.6684]
[1729391085856,5.6671,158.81,158.76,25.975]
[1729391091355,5.6671,158.81,158.76,19.8402]
[1729391099882,23.776884,158.83,158.74,16.1938]
[1729391100184,5.6684,158.78,158.74,16.1938]
[1729391100957,5.6688,158.77,158.72,14.7864535]
[1729391101168,5.6682,158.78,158.73,5.6697]
[1729391115992,23.776884,158.81,158.72,0.6112535]
[1729391115993,5.6698,158.74,158.72,0.6112535]
[1729391116171,23.976884,158.79,158.72,0.6112535]
[1729391116372,29.446884,158.73,158.72,0.6112535]
[1729391117289,23.776884,158.74,158.72,0.6112535]
[1729391117791,5.67,158.73,158.72,0.6112535]
[1729391118095,23.776884,158.74,158.72,0.6112535]
[1729391118266,29.446484,158.74,158.72,0.6112535]
[1729391120786,5.67,158.73,158.72,0.6112535]
[1729391120994,29.446884,158.73,158.72,0.6112535]
[1729391128080,44.468884,158.73,158.72,0.6112535]
[1729391137307,50.98499514,158.73,158.72,0.6112535]
[1729391140517,51.08499514,158.73,158.72,0.6112535]
[1729391146308,36.06299514,158.73,158.72,0.6112535]
[1729391148614,35.96299514,158.73,158.72,0.6112535]
[1729391148817,12.18611114,158.73,158.72,0.6112535]
[1729391149128,5.67,158.73,158.72,0.6112535]
[1729391150004,29.446884,158.73,158.72,0.6112535]
[1729391151520,5.67,158.73,158.72,0.6112535]
[1729391152014,20.78826974,158.76,158.72,0.6112535]
[1729391152015,6.61546974,158.76,158.72,0.6112535]
[1729391152219,5.6697,158.74,158.72,0.6112535]
[1729391153408,23.776884,158.73,158.72,0.6112535]
[1729391160228,29.446884,158.73,158.72,0.6112535]
[1729391163312,23.776884,158.73,158.72,0.6112535]
[1729391164002,5.6697,158.74,158.72,0.6112535]
[1729391165327,23.776884,158.73,158.72,0.6112535]
[1729391169006,5.6689,158.76,158.72,0.6112535]
[1729391169206,23.776884,158.75,158.72,6.2815535]
[1729391169422,23.776884,158.76,158.72,6.2815535]
[1729391169932,6.51368574,158.81,158.74,16.2364]
[1729391170123,22.80094333,158.85,158.74,16.2364]
[1729391170330,5.6677,158.8,158.76,14.172]
[1729391171529,23.776884,158.79,158.76,14.172]
[1729391175132,5.6677,158.8,158.76,14.172]
[1729391175133,23.776884,158.84,158.77,5.6684]
[1729391175429,23.776884,158.81,158.77,5.6684]
[1729391189838,29.443984,158.81,158.77,5.6684]
[1729391193031,29.443984,158.81,158.76,26.3325]
[1729391194739,5.6675,158.8,158.76,26.3325]
[1729391195129,29.443984,158.81,158.76,26.3325]
[1729391197349,23.776884,158.78,158.74,16.2364]
[1729391197742,23.776884,158.78,158.74,21.906]
[1729391199727,29.445184,158.78,158.74,16.2364]
[1729391205427,23.776884,158.78,158.74,16.2364]
[1729391205635,23.776884,158.78,158.74,21.9059]
[1729391217360,23.776884,158.76,158.73,14.1748]
[1729391217536,29.445884,158.76,158.72,0.6112535]
[1729391217738,23.776884,158.74,158.72,0.6112535]
[1729391218840,23.776884,158.75,158.72,0.6112535]
[1729391219436,5.6696,158.74,158.72,0.6112535]
[1729391219644,23.776884,158.73,158.72,0.6112535]
[1729391224453,5.6692,158.76,158.72,0.6112535]
[1729391224762,12.1796383,158.81,158.76,5.6686]
[1729391224950,5.6671,158.81,158.76,5.6686]
[1729391225265,5.667,158.82,158.76,5.6686]
[1729391225766,5.667,158.82,158.72,6.9811535]
[1729391225940,5.667,158.82,158.77,5.6684]
[1729391227344,23.776884,158.81,158.77,5.6684]
[1729391228369,23.776884,158.78,158.74,5.6696]
[1729391233369,23.776884,158.78,158.72,0.6112535]
[1729391233871,23.776884,158.74,158.72,0.6112535]
[1729391234059,24.66866755,158.78,158.72,0.6112535]
[1729391234245,23.776884,158.74,158.72,0.6112535]
[1729391234663,29.446584,158.74,158.72,0.6112535]
[1729391235078,23.776884,158.74,158.72,0.6112535]
[1729391235246,29.446884,158.73,158.72,0.6112535]
[1729391236475,23.776884,158.73,158.72,0.6112535]
[1729391245588,23.776884,158.75,158.72,6.2813535]
[1729391245874,23.776884,158.75,158.72,0.6112535]
[1729391259173,29.446284,158.75,158.72,0.6112535]
[1729391261980,23.776884,158.75,158.72,0.6112535]
[1729391264161,1.09310876,158.81,158.73,14.1749]
[1729391264359,6.5814,158.82,158.72,7.1316535]
[1729391264360,5.6675,158.8,158.72,7.1316535]
[1729391264563,5.6674,158.81,158.76,5.6688]
[1729391264977,5.6668,158.82,158.77,5.6685]
[1729391267294,23.776884,158.81,158.77,5.6685]
[1729391271499,23.776884,158.82,158.78,5.6682]
[1729391272004,23.776884,158.82,158.79,5.6678]
[1729391272166,7.32090938,158.83,158.81,5.667]
[1729391272791,7.32090938,158.83,158.8,14.1683]
[1729391273597,23.776884,158.84,158.8,14.1683]
[1729391274294,23.776884,158.84,158.81,5.667]
[1729391274478,23.776884,158.85,158.81,5.667]
[1729391274669,29.442784,158.85,158.8,14.1683]
[1729391276991,23.776884,158.82,158.77,26.3598]
[1729391277378,23.776884,158.82,158.77,19.8394]
[1729391277574,23.776884,158.82,158.76,16.3913]
[1729391277874,23.776884,158.8,158.76,22.0602]
[1729391280300,23.776884,158.81,158.77,5.6685]
[1729391281778,23.776884,158.81,158.78,5.6679]
[1729391282102,15.7736,158.85,158.78,5.6679]
[1729391282103,23.776884,158.82,158.78,5.6679]
[1729391286384,23.776884,158.82,158.74,14.1739]
[1729391286887,23.776884,158.77,158.74,19.8435]
[1729391287699,23.776884,158.78,158.74,19.8435]
[1729391290889,23.776884,158.78,158.72,17.1724535]
[1729391291088,23.776884,158.78,158.75,14.1726]
[1729391291285,23.776884,158.79,158.75,14.1726]
[1729391292092,23.776884,158.79,158.75,19.8418]
[1729391292896,23.776884,158.79,158.76,5.6688]
[1729391293086,23.776884,158.8,158.76,5.6688]
[1729391293496,23.776884,158.8,158.77,5.6685]
[1729391293680,5.666,158.84,158.78,5.6681]
[1729391294086,21.935,158.85,158.78,5.6681]
[1729391294285,5.6669,158.82,158.77,19.8392]
[1729391294715,21.935,158.85,158.77,14.171]
[1729391294884,5.6671,158.81,158.77,14.171]
[1729391295286,23.776884,158.8,158.77,14.171]
[1729391296112,7.60329232,158.87,158.76,16.5135]
[1729391296288,21.7492,158.9,158.79,5.6677]
[1729391296492,21.96281385,158.89,158.77,14.1714]
[1729391296691,5.6662,158.84,158.78,5.668]
[1729391297517,23.776884,158.83,158.78,5.668]
[1729391299913,23.776884,158.83,158.77,14.1714]
[1729391300123,0.2,158.88,158.77,19.8399]
[1729391300124,23.776884,158.81,158.77,19.8399]
[1729391311196,29.444084,158.81,158.77,14.1714]
[1729391316611,23.776884,158.81,158.76,16.5135]
[1729391316939,23.776884,158.81,158.78,19.8387]
[1729391317116,23.776884,158.81,158.78,14.1705]
[1729391326125,6.51007379,158.86,158.76,22.9878]
[1729391326325,5.6657,158.85,158.8,5.6673]
[1729391327523,23.776884,158.84,158.8,5.6673]
[1729391350658,23.776884,158.86,158.77,28.3419]
[1729391350859,12.22829871,158.89,158.84,5.6657]
[1729391351065,5.6646,158.89,158.84,5.6657]
[1729391351360,5.6649,158.88,158.83,19.832]
[1729391352355,23.776884,158.87,158.83,19.832]
[1729391354867,5.6649,158.88,158.83,19.832]
[1729391356968,5.6649,158.88,158.84,5.666]
[1729391357949,5.6639,158.9,158.84,5.666]
[1729391358359,5.6643,158.89,158.84,5.666]
[1729391359267,5.6643,158.89,158.85,5.6656]
[1729391359572,29.441084,158.9,158.85,5.6656]
[1729391362753,5.6643,158.89,158.84,19.8311]
[1729391365264,7.79201001,158.91,158.84,14.1651]
[1729391365464,5.664,158.9,158.85,5.6656]
[1729391368176,5.664,158.9,158.84,14.1651]
[1729391368177,5.6643,158.89,158.84,19.831]
[1729391368481,5.6634,158.92,158.86,5.6651]
[1729391368655,5.6635,158.91,158.86,5.6651]
[1729391370057,5.6642,158.9,158.85,14.1638]
[1729391372378,5.6647,158.88,158.83,15.1848]
[1729391372582,5.6647,158.88,158.83,20.851]
[1729391384781,5.6643,158.89,158.84,5.666]
[1729391392082,6.56151126,158.92,158.83,15.1848]
[1729391392383,5.6639,158.9,158.85,5.6655]
[1729391392706,5.6636,158.91,158.86,5.6653]
[1729391396009,23.776884,158.9,158.77,44.7385]
[1729391396187,23.776884,158.9,158.77,16.3966]
[1729391396188,23.876884,158.89,158.77,16.3966]
[1729391396379,5.6666,158.83,158.77,22.0651]
[1729391396582,14.1616,158.88,158.8,5.6674]
[1729391396583,5.665,158.87,158.8,5.6674]
[1729391396811,29.442584,158.86,158.8,5.6674]
[1729391397283,29.442584,158.86,158.8,5.6673]
[1729391397480,21.782,158.9,158.77,16.3966]
[1729391397481,5.6648,158.88,158.78,20.0]
[1729391397698,5.6648,158.88,158.81,14.167]
[1729391397902,5.6648,158.88,158.82,5.6667]
[1729391401490,5.6652,158.87,158.81,19.834]
[1729391403520,5.6652,158.87,158.82,5.6667]
[1729391403812,5.666,158.85,158.8,5.6674]
[1729391403987,37.937684,158.89,158.78,20.0]
[1729391404186,5.6653,158.87,158.81,5.6668]
[1729391405315,37.937684,158.89,158.81,5.6668]
[1729391405685,37.937684,158.89,158.83,5.6661]
[1729391405686,5.6646,158.88,158.83,5.6661]
[1729391405886,12.22317624,158.9,158.79,22.9121]
[1729391406112,5.6642,158.9,158.85,5.6656]
[1729391414217,23.776884,158.91,158.86,5.6651]
[1729391415912,29.440484,158.91,158.86,5.6651]
[1729391430515,29.43457957,158.94,158.85,16.3103]
[1729391430716,5.6628,158.93,158.88,5.6646]
[1729391431913,5.6626,158.94,158.89,5.6642]
[1729391433894,6.55642122,158.97,158.85,16.4103]
[1729391434096,5.6618,158.96,158.86,0.1]
[1729391434298,30.5679379,158.98,158.86,20.2]
[1729391434299,24.3066379,158.98,158.86,20.2]
[1729391434503,29.9677379,158.98,158.92,5.663]
[1729391434721,5.6616,158.97,158.92,5.663]
[1729391438330,23.776884,158.97,158.89,14.1607]
[1729391438907,5.6624,158.95,158.89,19.8246]
[1729391439810,5.6628,158.93,158.89,14.1607]
[1729391440627,23.776884,158.97,158.89,14.1607]
[1729391441212,5.662,158.96,158.9,5.6639]
[1729391441842,5.662,158.96,158.87,14.1625]
[1729391442128,5.662,158.96,158.91,5.6635]
[1729391446647,7.9277379,158.98,158.94,5.6622]
[1729391449839,7.9277379,158.98,158.93,14.1565]
[1729391450022,5.6603,159.01,158.95,5.6618]
[1729391450227,1.09426817,159.05,158.91,48.4179]
[1729391450419,5.6597,159.02,158.91,48.5179]
[1729391450740,5.6597,159.02,158.97,5.6613]
[1729391452941,5.6593,159.03,158.97,5.6613]
[1729391454738,12.20271341,159.05,159.0,5.6601]
[1729391454926,5.6586,159.05,159.0,5.6601]
[1729391465326,28.17573889,159.1,158.98,20.0]
[1729391465537,5.6571,159.09,159.04,5.6588]
[1729391465747,10.1356168,159.11,159.03,14.148]
[1729391465954,5.6575,159.08,159.03,19.8072]
[1729391466939,23.776884,159.1,159.07,5.6575]
[1729391467263,29.433684,159.1,159.06,19.8031]
[1729391467565,29.433684,159.1,159.06,14.1449]
[1729391468125,29.433684,159.1,159.05,5.6585]
[1729391470756,5.6571,159.09,159.05,5.6585]
[1729391471065,23.776884,159.1,159.03,14.1481]
[1729391471241,5.6576,159.08,159.03,19.807]
[1729391474636,5.6571,159.09,159.04,5.6589]
[1729391474839,5.6568,159.1,159.05,5.6583]
[1729391475140,10.1356168,159.11,159.08,5.6572]
[1729391475342,6.55335151,159.13,159.1,5.6568]
[1729391475536,5.6553,159.15,159.1,5.6568]
[1729391476043,29.01963959,159.18,159.07,16.4473]
[1729391476355,29.01963959,159.18,159.09,14.1428]
[1729391477443,29.01963959,159.18,159.1,5.6567]
[1729391477444,5.6553,159.15,159.1,5.6567]
[1729391478556,5.6565,159.11,159.06,19.8035]
[1729391478758,23.776884,159.17,159.06,14.1455]
[1729391479056,5.6567,159.11,159.06,14.1455]
[1729391481158,5.6567,159.11,159.06,19.8035]
[1729391487471,5.6557,159.13,159.09,14.1428]
[1729391493247,5.6561,159.12,159.07,5.6578]
[1729391493556,23.776884,159.14,159.07,5.6578]
[1729391494461,5.6561,159.12,159.07,5.6578]
[1729391501663,5.6561,159.12,159.07,19.8023]
[1729391503551,5.6567,159.11,159.07,14.1446]
[1729391516749,5.6567,159.11,159.07,19.8024]
[1729391518075,6.55174046,159.15,159.09,5.6568]
[1729391518076,12.20704046,159.15,159.09,5.6568]
[1729391518279,5.6553,159.15,159.09,5.6568]
[1729391523059,5.6553,159.15,159.08,16.5326]
[1729391523273,5.6553,159.15,159.11,5.6564]
[1729391524563,29.431384,159.17,159.12,5.6559]
[1729391524757,29.431384,159.17,159.08,16.5326]
[1729391525079,5.6536,159.19,159.14,5.6553]
[1729391530869,22.5863,159.22,159.12,14.1402]
[1729391531070,5.654,159.18,159.13,5.6556]
[1729391531381,22.5863,159.22,159.12,14.1402]
[1729391531382,5.6547,159.16,159.12,14.1402]
[1729391535058,21.7277,159.15,159.04,15.6919]
[1729391535258,5.6564,159.11,159.05,5.6582]
[1729391535472,5.6564,159.11,159.04,29.8389]
[1729391535674,5.6564,159.11,159.06,5.6581]
[1729391544185,21.86794289,159.15,159.04,15.7919]
[1729391544374,5.6558,159.13,159.07,19.8019]
[1729391544769,5.6558,159.13,159.07,14.1444]
[1729391544976,5.6558,159.13,159.08,5.6574]
[1729391549066,5.6553,159.15,159.09,5.6568]
[1729391549399,5.6557,159.14,159.08,5.6575]
[1729391549770,5.6557,159.13,159.08,5.6575]
[1729391557581,23.776884,159.16,159.08,5.6575]
[1729391557786,5.6561,159.12,159.08,5.6575]
[1729391566303,5.6561,159.12,159.07,19.8016]
[1729391584616,5.6561,159.12,159.05,28.2929]
[1729391584617,5.6569,159.1,159.05,5.6582]
[1729391585902,5.6565,159.11,159.06,5.6581]
[1729391599213,23.776884,159.1,158.98,0.4643847]
[1729391599426,5.6585,159.06,159.0,19.8104]
[1729391599726,5.6585,159.06,159.0,14.1501]
[1729391599908,5.6585,159.06,159.01,5.6597]
[1729391601733,5.6579,159.07,159.01,5.6597]
[1729391607724,5.6575,159.09,159.03,5.6593]
[1729391608726,5.6576,159.08,159.03,5.6593]
[1729391611733,5.6568,159.1,159.04,5.6588]
[1729391614042,16.3326,159.11,159.04,5.6588]
[1729391614340,5.6573,159.09,159.04,5.6588]
[1729391618746,5.6582,159.07,159.01,22.236]
[1729391618919,5.6582,159.06,159.01,22.236]
[1729391627324,5.6582,159.06,159.01,16.5762]
[1729391627524,5.6582,159.06,159.02,5.6596]
[1729391631821,5.6574,159.09,159.03,5.659]
[1729391634247,23.776884,159.1,159.03,5.659]
[1729391634448,5.6576,159.08,159.03,5.659]
[1729391637528,5.6581,159.07,159.02,14.1487]
[1729391643729,5.6581,159.07,159.02,19.8083]
[1729391694756,42.4293,159.09,158.97,15.3213]
[1729391694951,5.6603,159.01,158.97,29.4747]
[1729391695392,5.6596,159.03,158.97,35.136]
[1729391695587,5.6599,159.02,158.97,19.8147]
[1729391695766,5.6593,159.03,158.95,5.6618]
[1729391696078,23.776884,159.04,158.94,19.8185]
[1729391696979,23.776884,159.02,158.94,19.8185]
[1729391697161,5.6606,159.0,158.94,19.8185]
[1729391701589,5.6607,158.99,158.94,19.8185]
[1729391705680,5.6607,158.99,158.94,14.1561]
[1729391705984,5.6607,158.99,158.94,19.8185]
[1729391716797,21.3513,159.01,158.92,5.6631]
[1729391716999,21.3513,159.01,158.91,19.8224]
[1729391717000,37.927884,159.0,158.91,19.8224]
[1729391717372,5.6617,158.97,158.91,19.8224]
[1729391717698,5.6618,158.96,158.91,19.8224]
[1729391718078,5.6623,158.95,158.91,14.1589]
[1729391720097,5.6625,158.94,158.9,5.6638]
[1729391724681,23.776884,158.98,158.9,5.6638]
[1729391724882,5.6621,158.95,158.9,5.6638]
[1729391727988,27.89617994,159.01,158.94,5.6624]
[1729391728311,5.6606,159.0,158.94,5.6624]
[1729391728908,5.6598,159.02,158.96,5.6614]
[1729391730412,5.6598,159.02,158.97,5.6611]
[1729391731792,5.6586,159.05,158.99,5.6604]
[1729391746411,5.6586,159.05,158.95,50.4546]
[1729391746621,5.6586,159.05,158.99,5.6604]
[1729391746917,5.6582,159.07,158.96,28.409]
[1729391747120,5.6583,159.06,159.01,5.6599]
[1729391747419,37.58033341,159.09,159.0,5.6603]
[1729391747594,44.12126453,159.09,159.0,5.6603]
[1729391747799,5.6588,159.05,159.0,5.6603]
[1729391768432,28.88443112,159.09,159.0,16.2431]
[1729391768631,5.658,159.07,159.02,5.6594]
[1729391768817,10.30117623,159.1,159.0,22.2634]
[1729391769129,15.95797623,159.1,159.05,5.6584]
[1729391770130,5.6572,159.09,159.04,19.806]
[1729391773024,10.30117623,159.1,159.04,14.1471]
[1729391773341,10.30117623,159.1,159.0,22.2634]
[1729391773525,15.95807623,159.1,159.05,5.6583]
[1729391773730,10.30117623,159.1,159.02,28.2983]
[1729391774246,10.30117623,159.1,159.05,21.497]
[1729391775837,5.6568,159.1,159.05,21.497]
[1729391783252,23.776884,159.12,159.05,21.497]
[1729391783562,5.6565,159.11,159.06,5.6581]
[1729391783937,6.53812403,159.13,159.05,15.8388]
[1729391784146,6.53812403,159.13,159.08,5.6573]
[1729391784447,6.53812403,159.13,159.09,5.6569]
[1729391788065,12.19382403,159.13,159.05,22.0092]
[1729391788363,12.19382403,159.13,159.08,5.6574]
[1729391790047,6.53812403,159.13,159.07,14.1447]
[1729391790262,5.6561,159.12,159.07,14.1447]
[1729391791858,5.6567,159.11,159.06,5.6581]
[1729391792066,5.6568,159.1,159.05,27.6676]
[1729391795436,23.776884,159.12,159.05,22.0092]
[1729391795643,5.6567,159.11,159.06,5.6581]
[1729391798848,5.6568,159.1,159.06,5.6581]
[1729391800771,5.6561,159.12,159.06,5.6581]
[1729391801567,6.53812403,159.13,159.06,5.6581]
[1729391801754,5.6565,159.11,159.06,5.6581]
[1729391804600,5.6579,159.07,159.03,5.6592]
[1729391804763,37.917084,159.12,159.01,35.7089]
[1729391804764,37.917084,159.12,159.01,21.559]
[1729391805089,5.6574,159.09,159.03,5.6592]
[1729391810682,5.6581,159.07,159.02,19.8085]
[1729391815394,14.1411,159.11,159.02,14.149]
[1729391815595,5.6574,159.09,159.03,5.659]
[1729391816777,5.6575,159.08,159.03,5.659]
[1729391823979,39.296684,159.12,159.01,21.559]
[1729391824182,5.6572,159.09,159.04,5.6587]
[1729391827879,39.296684,159.12,159.01,21.559]
[1729391828095,5.6567,159.11,159.05,5.6582]
[1729391830082,5.6568,159.1,159.05,5.6582]
[1729391830414,5.6578,159.08,159.02,5.6596]
[1729391830991,5.6578,159.08,159.03,5.659]
[1729391832879,53.437084,159.12,159.01,21.559]
[1729391833099,5.6571,159.1,159.04,5.6586]
[1729391834001,5.6571,159.1,159.05,5.6584]
[1729391838085,5.6564,159.12,159.06,5.658]
[1729391839312,12.19382403,159.13,159.07,5.6575]
[1729391840711,5.6561,159.12,159.07,5.6575]
[1729391848107,10.29890827,159.14,159.06,14.145]
[1729391848390,5.6568,159.1,159.06,14.145]
[1729391854318,5.6568,159.1,159.06,19.8031]
[1729391859431,5.6565,159.11,159.06,19.8031]
[1729391862720,5.6568,159.1,159.06,19.8031]
[1729391864326,23.776884,159.13,159.05,21.6598]
[1729391864627,5.6571,159.09,159.04,5.6586]
[1729391866328,5.6578,159.08,159.03,14.148]
[1729391869999,35.2534,159.12,159.01,15.4305]
[1729391870000,23.776884,159.11,159.01,15.4305]
[1729391870227,5.6585,159.06,159.01,21.0905]
[1729391872734,14.142,159.1,159.01,15.4305]
[1729391872907,5.6585,159.06,159.01,15.4305]
[1729391873910,5.6585,159.06,158.99,14.151]
[1729391874126,5.6585,159.06,159.0,5.6603]
[1729391874630,5.6595,159.03,158.98,11.8476]
[1729391874838,5.6595,159.03,158.99,5.6607]
[1729391875832,5.6595,159.03,158.98,6.1867]
[1729391875833,23.776884,159.06,158.98,5.661]
[1729391876831,5.6592,159.04,158.98,5.661]
[1729391877910,5.6592,159.04,158.97,16.4169]
[1729391878141,5.6586,159.05,159.0,5.6603]
[1729391879735,5.6578,159.07,159.02,5.6594]
[1729391896460,5.6576,159.08,159.03,5.6592]
[1729391911745,5.6576,159.08,159.04,5.6589]
[1729391911962,5.6572,159.09,159.04,5.6589]
[1729391912546,5.6576,159.08,159.03,5.6592]
[1729391913869,5.6576,159.08,159.04,5.6589]
[1729391914046,5.6572,159.09,159.04,5.6589]
[1729391938382,5.6576,159.08,159.03,5.6592]
[1729391938593,5.6576,159.08,159.01,15.3907]
[1729391938594,5.6587,159.05,158.99,5.6604]
[1729391938765,5.6587,159.05,159.0,5.6602]
[1729391945581,5.6581,159.07,159.01,5.6597]
[1729391958582,5.6582,159.06,159.01,5.6597]
[1729391978120,5.6586,159.05,159.01,5.6597]
[1729391978621,23.776884,159.06,159.0,14.1504]
[1729391979520,5.6592,159.04,159.0,14.1504]
[1729391988635,5.6597,159.02,158.97,30.702]
[1729391989427,5.6597,159.02,158.97,36.3634]
[1729391989622,23.776884,159.05,158.97,30.702]
[1729391989828,5.6599,159.02,158.97,30.702]
[1729391990405,5.6601,159.01,158.97,30.702]
[1729391990605,5.6601,159.01,158.97,14.1535]
[1729391998445,23.776884,159.05,158.97,14.1535]
[1729391998736,5.6596,159.02,158.97,19.8148]
[1729391999327,23.776884,159.03,158.95,19.8174]
[1729391999536,5.6597,159.02,158.97,5.6611]
[1729392000030,30.32595818,159.05,158.97,5.6611]
[1729392000338,30.32595818,159.05,158.93,15.7571]
[1729392000339,5.6611,158.98,158.93,21.4198]
[1729392000646,5.6621,158.96,158.9,6.3898]
[1729392000817,5.6621,158.96,158.91,5.6634]
[1729392001435,23.776884,158.98,158.9,20.5493]